bitfinex/quotes_ETHUSD_20250625
["timestamp","ask_amount","ask_price","bid_price","bid_amount"]
[1750813955080,0.19984593,2459.3,2459.1,4.06642675]
[1750813955274,7.78,2459.5,2459.3,4.06611961]
[1750813955457,7.78,2459.5,2459.3,0.7944]
[1750813955653,7.78,2459.5,2459.3,4.86057626]
[1750813955863,7.78,2459.5,2459.3,0.7944]
[1750813956068,8.96455856,2459.5,2459.0,0.7944]
[1750813956276,4.06665535,2459.1,2458.6,6.659333]
[1750813956998,0.7789,2459.2,2458.4,4.06766254]
[1750813957206,4.06683178,2459.0,2458.4,4.06759126]
[1750813957481,4.06677956,2459.0,2458.4,4.06759126]
[1750813957794,4.06689451,2458.9,2458.4,4.06759126]
[1750813959287,4.06731325,2458.7,2458.2,5.85399208]
[1750813959452,4.84597281,2458.8,2458.3,4.06776896]
[1750813960862,11.84698076,2458.9,2458.4,4.06761128]
[1750813961061,7.78,2458.9,2458.5,4.06742895]
[1750813961268,7.78,2458.9,2458.6,4.06734243]
[1750813961688,7.78,2458.9,2458.5,4.87296844]
[1750813962186,7.78,2458.9,2458.6,4.06733793]
[1750813962402,10.0,2459.2,2458.8,4.06702302]
[1750813962558,0.19982574,2459.1,2458.8,4.06702302]
[1750813962886,10.81090537,2459.5,2459.0,4.06669377]
[1750813963086,0.19983861,2459.4,2459.1,4.06651526]
[1750813963289,10.0,2459.5,2459.1,4.06651526]
[1750813963605,16.32878961,2459.5,2458.9,0.8055]
[1750813963761,4.06620174,2459.3,2458.9,0.8055]
[1750813964289,4.06610699,2459.4,2458.9,4.87234392]
[1750813966602,16.32880279,2459.5,2458.7,4.06710904]
[1750813966603,4.82348774,2459.2,2458.7,4.06710904]
[1750813966901,4.82348774,2459.2,2458.3,0.7816]
[1750813966902,0.7571,2458.8,2458.3,0.7816]
[1750813967104,4.82426039,2458.8,2458.3,4.84943784]
[1750813968797,4.82426039,2458.8,2458.3,4.06783784]
[1750813968998,4.82426039,2458.8,2458.2,5.84993721]
[1750813968999,4.06721301,2458.7,2458.2,5.84993721]
[1750813969373,4.8241886,2458.8,2458.3,4.06781278]
[1750813970179,6.38769508,2458.8,2458.3,4.06781278]
[1750813971400,4.8241886,2458.8,2458.4,4.0676837]
[1750813972002,0.7571,2458.8,2458.5,4.06738633]
[1750813972495,0.7571,2458.8,2458.3,4.06785176]
[1750813972701,0.7571,2458.8,2458.2,5.84995655]
[1750813972903,0.7571,2458.8,2458.4,4.06766776]
[1750813974701,4.8241313,2458.8,2458.4,4.06766776]
[1750813974903,4.8241313,2458.8,2458.3,4.06777246]
[1750813976806,4.06723616,2458.7,2458.3,4.06784926]
[1750813977314,7.16551784,2458.8,2458.3,4.06784926]
[1750813979121,7.16551784,2458.8,2458.4,4.06767112]
[1750813979279,0.7571,2458.8,2458.5,4.06739697]
[1750813979932,0.7571,2458.8,2458.4,4.06759697]
[1750813980925,4.82415003,2458.8,2458.3,4.06776653]
[1750813981123,4.06745335,2458.6,2458.1,4.84966527]
[1750813981533,3.09840964,2458.8,2458.2,4.0679777]
[1750813981714,0.19975044,2458.7,2458.3,4.06776648]
[1750813981896,7.16550784,2458.8,2458.3,4.06776648]
[1750813982097,4.26700384,2458.7,2458.3,4.06776648]
[1750813982297,4.06722793,2458.7,2458.3,4.06776648]
[1750813982499,4.06722793,2458.7,2458.2,4.06795064]
[1750813983933,4.06738501,2458.6,2458.1,4.06817868]
[1750813985821,4.06820173,2458.1,2457.6,6.63801726]
[1750813986021,4.89630173,2458.1,2457.6,2.5691]
[1750813986230,0.8281,2458.1,2457.6,2.5691]
[1750813986536,0.8281,2458.4,2458.0,4.06827566]
[1750813986832,4.89583899,2458.4,2457.9,4.06842904]
[1750813988641,4.06785529,2458.3,2457.8,4.06861844]
[1750813989236,4.06785529,2458.3,2457.9,4.068509]
[1750813989620,4.06804093,2458.2,2457.7,4.06874958]
[1750813990343,4.06804093,2458.2,2457.8,4.068671]
[1750813990538,6.41626418,2458.3,2457.8,4.068671]
[1750813991141,4.06804313,2458.2,2457.7,4.06875164]
[1750813992051,4.06804313,2458.2,2457.8,4.06867347]
[1750813992447,6.41628074,2458.3,2457.8,4.06867347]
[1750813993153,4.06805344,2458.2,2457.7,4.06875402]
[1750813993958,0.8281,2458.4,2457.9,4.06834891]
[1750813994250,0.8281,2458.4,2457.7,1.07068526]
[1750813994251,0.8281,2458.4,2458.0,4.06832415]
[1750813995123,7.78,2458.5,2458.3,4.06785176]
[1750813995323,7.78,2458.6,2458.3,4.06785176]
[1750813996959,7.78,2458.6,2458.0,4.84327876]
[1750813997134,11.8473632,2458.6,2458.1,4.06810561]
[1750813997448,11.8473632,2458.6,2458.2,4.068004]
[1750813997652,7.78,2458.6,2458.2,4.068004]
[1750813998762,11.84724844,2458.7,2458.2,4.068004]
[1750813998929,4.06735639,2458.6,2458.2,4.068004]
[1750813999128,4.06735639,2458.6,2457.7,1.89848526]
[1750813999129,0.7794,2458.4,2457.7,1.89848526]
[1750813999352,4.84719684,2458.4,2457.9,4.06849725]
[1750813999545,0.7794,2458.4,2458.0,4.06833631]
[1750814000431,0.7794,2458.4,2458.1,4.06817054]
[1750814000842,0.7794,2458.4,2458.0,4.06820806]
[1750814002170,3.10156059,2458.6,2458.0,4.06820806]
[1750814002333,7.16894135,2458.6,2458.1,4.06818274]
[1750814004465,5.56245364,2458.5,2458.0,4.06825517]
[1750814005954,1.49489414,2458.5,2458.1,4.06810387]
[1750814006266,4.06812095,2458.2,2457.7,4.89654156]
[1750814006567,4.06812095,2458.2,2457.7,4.06874156]
[1750814009638,0.8308,2458.3,2457.6,1.779]
[1750814009969,0.8309,2458.0,2457.6,5.8479306]
[1750814011867,0.8309,2458.0,2457.7,4.06882353]
[1750814013367,0.8309,2458.0,2457.6,5.84792529]
[1750814014174,0.795,2458.3,2457.7,0.7742]
[1750814014373,0.795,2458.5,2458.3,4.06782367]
[1750814015185,0.795,2458.5,2458.0,4.06828881]
[1750814015383,0.795,2458.5,2458.1,4.06809795]
[1750814015589,0.795,2458.5,2457.7,9.2862]
[1750814015771,4.06776693,2458.4,2457.9,4.06838446]
[1750814017190,4.86260566,2458.5,2458.0,4.06832881]
[1750814017394,0.795,2458.5,2458.1,4.06817261]
[1750814018101,0.795,2458.5,2458.2,4.06797738]
[1750814019297,0.795,2458.5,2458.3,4.06784727]
[1750814019804,7.78,2458.7,2458.1,0.7693]
[1750814020008,7.78,2458.7,2458.5,4.06743465]
[1750814021581,7.78,2458.7,2458.2,12.57901724]
[1750814021802,0.8131,2459.1,2458.9,4.06684967]
[1750814022011,0.8131,2459.3,2459.0,4.06668037]
[1750814022207,0.8131,2459.3,2459.1,4.0665213]
[1750814022439,7.78,2459.5,2459.2,4.06635896]
[1750814022640,7.78,2459.5,2458.8,4.86205845]
[1750814022792,7.78,2459.5,2459.3,4.06613227]
[1750814022984,7.78,2459.5,2459.0,4.06669377]
[1750814023189,8.5432,2459.6,2458.9,1.71435411]
[1750814023400,8.5432,2459.6,2459.3,4.06607806]
[1750814024194,8.5432,2459.6,2459.1,4.06641278]
[1750814024195,8.5432,2459.6,2459.2,4.06624895]
[1750814025419,8.5432,2459.6,2459.3,4.06619583]
[1750814026154,8.5432,2459.6,2459.2,4.06629562]
[1750814029710,12.60891792,2459.6,2459.1,4.06644641]
[1750814030224,4.06594489,2459.5,2459.0,4.06655485]
[1750814030428,6.728,2459.4,2458.3,1.97836323]
[1750814030598,4.06682878,2459.0,2458.5,4.0674606]
[1750814030798,4.06669377,2459.0,2458.4,4.06756897]
[1750814031633,4.06693263,2458.9,2458.4,4.06756897]
[1750814031795,4.06669377,2459.0,2458.3,5.84074095]
[1750814031796,4.0670417,2458.8,2458.3,5.84077269]
[1750814031992,0.7858,2458.7,2458.3,5.84077269]
[1750814032904,0.7858,2458.7,2458.3,4.06777269]
[1750814033108,4.85300591,2458.7,2458.2,5.84093702]
[1750814033520,0.7858,2458.7,2458.3,4.06781684]
[1750814033705,0.7858,2458.7,2458.2,5.84093702]
[1750814033706,0.7858,2458.7,2458.1,4.06811355]
[1750814033909,0.7858,2458.7,2458.1,4.73114491]
[1750814034110,0.7858,2458.7,2458.2,4.06786455]
[1750814034519,4.85300112,2458.7,2458.2,4.06786455]
[1750814035942,0.7858,2458.7,2458.3,4.06784004]
[1750814036109,0.7858,2458.7,2458.1,4.73114491]
[1750814036301,0.7858,2458.7,2458.1,0.66303136]
[1750814036612,4.06744563,2458.6,2458.1,4.7311181]
[1750814036911,4.85307897,2458.7,2458.2,4.06801511]
[1750814037149,1.67781255,2458.7,2457.8,0.7989]
[1750814037318,0.803,2458.4,2457.9,4.06839716]
[1750814037626,0.803,2458.4,2458.0,4.06825061]
[1750814037797,0.803,2458.4,2457.9,4.06851377]
[1750814038003,0.803,2458.4,2458.0,4.06834825]
[1750814039029,10.0,2458.6,2457.8,2.5719]
[1750814039232,10.0,2458.6,2458.2,4.06792528]
[1750814039400,14.06737322,2458.6,2458.1,4.06809098]
[1750814039601,4.06753676,2458.5,2458.0,4.06825456]
[1750814040036,14.06744749,2458.6,2458.1,4.06816282]
[1750814040235,12.65806155,2458.7,2458.2,4.0680101]
[1750814040626,4.06735695,2458.6,2458.1,4.06811139]
[1750814041545,12.65803975,2458.7,2457.9,0.25719]
[1750814041832,4.06748034,2458.6,2458.1,4.06816495]
[1750814042300,4.06748034,2458.6,2458.1,4.90754661]
[1750814042499,12.65799233,2458.7,2458.1,0.83938166]
[1750814042500,12.65803823,2458.7,2458.1,0.83938166]
[1750814042705,4.06743698,2458.6,2458.1,4.06817978]
[1750814043417,4.06754075,2458.5,2458.0,4.06825842]
[1750814044537,0.7926,2458.4,2458.0,4.06825842]
[1750814047245,0.7926,2458.4,2457.8,4.0686009]
[1750814047246,4.06796271,2458.3,2457.8,4.0686009]
[1750814048947,0.7926,2458.4,2457.9,4.0684394]
[1750814048948,4.86035169,2458.4,2457.9,4.0684394]
[1750814049241,4.86035169,2458.4,2457.8,4.0686009]
[1750814049242,4.86035169,2458.4,2458.0,4.06834642]
[1750814049614,4.06787841,2458.3,2457.8,4.06856496]
[1750814049814,0.7926,2458.4,2458.0,4.06834302]
[1750814051718,4.86030635,2458.4,2457.9,4.0684389]
[1750814051943,4.06789125,2458.3,2457.8,4.068585]
[1750814052148,0.7989,2458.2,2457.8,4.068585]
[1750814052328,0.7989,2458.2,2457.7,5.84276118]
[1750814052525,4.06822079,2458.1,2457.7,1.774]
[1750814052753,4.06822079,2458.1,2457.7,5.84283793]
[1750814053246,4.06822079,2458.1,2457.5,10.79208229]
[1750814053247,4.8571243,2458.0,2457.5,4.06909183]
[1750814053616,4.06852475,2457.9,2457.4,5.84326199]
[1750814053844,0.7887,2458.0,2457.5,4.06912406]
[1750814054019,0.7887,2458.0,2457.6,4.0689127]
[1750814054621,4.85705351,2458.0,2457.5,4.06908362]
[1750814055449,4.85705351,2458.0,2457.6,4.06899958]
[1750814055823,0.7887,2458.0,2457.6,4.06899958]
[1750814056165,4.85705711,2458.0,2457.5,4.06904656]
[1750814057423,0.7887,2458.0,2457.6,4.06897372]
[1750814058154,8.5687,2458.0,2457.6,4.06897372]
[1750814061350,12.63706016,2458.0,2457.6,4.06897372]
[1750814061649,8.5687,2458.0,2457.6,4.06900318]
[1750814062657,12.63708128,2458.0,2457.5,4.06908321]
[1750814063361,8.5687,2458.0,2457.6,4.06896989]
[1750814063536,12.6370487,2458.0,2457.6,4.06896989]
[1750814064051,4.06851646,2457.9,2457.4,12.56023225]
[1750814064225,4.06851646,2457.9,2457.4,5.49162659]
[1750814064424,4.06851646,2457.9,2457.5,4.06916639]
[1750814064623,7.78,2458.0,2457.2,9.765]
[1750814064822,4.07004342,2457.0,2456.5,1.769]
[1750814065042,0.7608,2456.9,2456.5,1.769]
[1750814065253,4.83104454,2456.9,2456.5,1.769]
[1750814065629,4.07039737,2456.8,2456.5,1.769]
[1750814067644,4.0705216,2456.7,2456.2,6.722]
[1750814067857,4.0705216,2456.7,2456.2,5.81453908]
[1750814068033,4.0705216,2456.7,2456.2,14.30553908]
[1750814069564,4.07045187,2456.8,2456.2,14.30553908]
[1750814069752,4.07051616,2456.7,2456.2,14.30553908]
[1750814069938,4.07040814,2456.8,2456.2,14.30553908]
[1750814070150,4.07052912,2456.7,2456.2,14.30553908]
[1750814070375,4.07042305,2456.8,2456.3,4.07115152]
[1750814070528,0.7608,2456.9,2456.4,4.8742982]
[1750814070734,14.83383586,2457.1,2456.5,4.07070248]
[1750814071076,14.83377,2457.1,2456.5,4.07076912]
[1750814071234,7.78,2457.2,2456.9,4.07016972]
[1750814071629,7.78,2457.2,2457.0,4.06999552]
[1750814071981,4.82735508,2457.5,2457.0,4.06999552]
[1750814072862,4.06955385,2457.3,2456.8,4.07028748]
[1750814073330,4.06944445,2457.4,2456.9,4.07016463]
[1750814073535,4.06944445,2457.4,2456.9,5.06122975]
[1750814073736,4.06950996,2457.3,2456.8,4.07025238]
[1750814073962,4.06950996,2457.3,2456.8,10.79125238]
[1750814074868,4.06942401,2457.4,2456.9,4.07006244]
[1750814075077,0.7581,2457.5,2457.0,0.8306]
[1750814075281,4.06937641,2457.4,2457.0,0.8306]
[1750814075482,4.06937641,2457.4,2457.0,1.99278268]
[1750814076247,4.06937641,2457.4,2457.0,1.16218268]
[1750814076446,4.82728477,2457.5,2457.0,4.06997858]
[1750814076447,0.7581,2457.5,2457.0,4.06997858]
[1750814077481,4.82729806,2457.5,2457.0,4.06997858]
[1750814078483,4.06936962,2457.4,2456.9,4.07009132]
[1750814079863,4.06951357,2457.3,2456.9,4.07009132]
[1750814080384,4.06940499,2457.4,2456.9,4.07009132]
[1750814080553,4.06940499,2457.4,2457.0,1.07910913]
[1750814083210,4.82734541,2457.5,2457.0,5.14908653]
[1750814083367,4.06901138,2457.6,2457.2,4.06963793]
[1750814083904,4.06901138,2457.6,2457.1,4.87114409]
[1750814084602,4.06920109,2457.5,2457.1,0.8014]
[1750814084802,4.06920109,2457.5,2457.1,1.22756001]
[1750814088604,4.06904919,2457.6,2457.1,5.2973672]
[1750814090514,14.06897197,2457.7,2457.2,4.0695495]
[1750814091920,14.06897197,2457.7,2457.3,4.06950538]
[1750814092278,14.06897197,2457.7,2457.2,4.06957561]
[1750814092481,4.06901885,2457.6,2457.2,4.06957561]
[1750814094017,4.06901885,2457.6,2457.1,5.29731155]
[1750814094518,4.06921427,2457.5,2457.1,1.22756001]
[1750814095034,4.06935055,2457.4,2457.1,0.8014]
[1750814095319,4.06935055,2457.4,2456.9,4.85277166]
[1750814095622,4.06935055,2457.4,2457.0,6.715]
[1750814096530,4.06935055,2457.4,2456.9,4.85277166]
[1750814096733,4.06935055,2457.4,2456.9,4.07007166]
[1750814096907,4.06935055,2457.4,2456.9,5.81395784]
[1750814098709,4.06935055,2457.4,2457.0,4.07000154]
[1750814099547,4.06935055,2457.4,2456.9,5.81396673]
[1750814100234,4.06934158,2457.4,2456.9,4.07008055]
[1750814100439,4.85609471,2457.2,2456.7,4.07041747]
[1750814101152,0.7864,2457.2,2457.0,4.06997636]
[1750814101880,0.7864,2457.4,2457.0,4.06997636]
[1750814102983,4.85574501,2457.4,2457.0,4.06997636]
[1750814103181,0.7864,2457.4,2457.0,4.06997636]
[1750814103773,0.7864,2457.4,2457.0,4.95922985]
[1750814104166,4.85574324,2457.4,2457.0,0.88925349]
[1750814104478,0.7864,2457.4,2457.0,4.95923946]
[1750814105885,4.06925533,2457.5,2457.0,4.95923946]
[1750814106677,12.65834605,2457.6,2457.1,4.06974372]
[1750814107380,0.20011221,2457.5,2457.1,4.06974372]
[1750814107593,12.65834605,2457.6,2457.1,4.06974372]
[1750814107775,0.20011224,2457.5,2457.1,4.06974372]
[1750814107971,12.65834605,2457.6,2457.1,4.06974372]
[1750814108177,4.2692962,2457.5,2457.0,4.9591712]
[1750814108377,4.06918397,2457.5,2457.0,4.9591712]
[1750814108886,12.65840001,2457.6,2457.1,4.06981604]
[1750814109089,0.20011224,2457.5,2457.1,4.06981604]
[1750814109261,12.65840001,2457.6,2457.1,4.06981604]
[1750814109469,0.20011201,2457.5,2457.1,4.06981604]
[1750814109691,12.65840001,2457.6,2457.1,4.06981604]
[1750814109988,4.26929286,2457.5,2457.0,4.95916399]
[1750814110192,4.06939729,2457.4,2456.9,4.82250638]
[1750814110356,8.5893,2457.6,2456.8,4.07031093]
[1750814110557,4.06960859,2457.3,2456.8,4.07031093]
[1750814111163,4.06987985,2457.1,2456.6,4.07058769]
[1750814111804,4.07001573,2457.0,2456.5,5.13113957]
[1750814112095,4.06992487,2457.1,2456.6,5.83844985]
[1750814113191,4.88199917,2457.2,2456.6,5.83844985]
[1750814113491,4.06992452,2457.1,2456.6,5.83844985]
[1750814114279,4.07001278,2457.0,2456.6,5.83844985]
[1750814114479,4.07017369,2456.9,2456.6,1.76780907]
[1750814114794,4.07007275,2457.0,2456.5,5.13121972]
[1750814115372,4.06991791,2457.1,2456.6,4.07063561]
[1750814115590,10.8123,2457.2,2456.6,4.07063561]
[1750814115770,10.0,2457.2,2456.8,4.07031774]
[1750814115972,4.0696736,2457.2,2456.7,4.07040743]
[1750814116285,4.0696736,2457.2,2456.5,1.06040013]
[1750814116286,6.22594136,2457.2,2456.5,1.06040013]
[1750814116499,4.07013446,2457.0,2456.5,11.5770561]
[1750814117568,4.82683446,2457.0,2456.5,11.5770561]
[1750814117775,4.82648971,2457.2,2456.7,4.07045912]
[1750814117982,0.7567,2457.2,2456.6,4.07060022]
[1750814118182,0.7567,2457.2,2456.7,5.22819109]
[1750814118382,4.82638941,2457.2,2456.7,5.22819109]
[1750814119606,0.7567,2457.2,2456.8,4.07032561]
[1750814119993,4.06984672,2457.1,2456.6,4.07056541]
[1750814120172,4.06984672,2457.1,2456.6,5.5038447]
[1750814120375,4.82645671,2457.2,2456.6,5.5038447]
[1750814120575,4.82645671,2457.2,2456.8,4.0703278]
[1750814120885,0.7567,2457.2,2456.8,4.0703278]
[1750814121297,4.82638476,2457.2,2456.7,4.07042148]
[1750814121496,4.06986463,2457.1,2456.6,5.50387909]
[1750814123219,4.06986463,2457.1,2456.7,1.7080951]
[1750814124113,4.06986463,2457.1,2456.6,4.0705998]
[1750814124485,4.07017064,2456.9,2456.5,4.07073816]
[1750814124679,0.775,2456.9,2456.1,0.8082]
[1750814124903,4.07058801,2456.7,2456.2,4.07122844]
[1750814125308,4.07041994,2456.8,2456.3,4.0711416]
[1750814125504,0.775,2456.9,2456.5,4.07081582]
[1750814125808,0.775,2456.9,2456.5,4.07083248]
[1750814129125,0.775,2456.9,2456.2,0.55]
[1750814129307,0.775,2456.9,2456.6,4.07057969]
[1750814130136,7.78,2457.0,2456.6,0.7786]
[1750814130310,7.78,2457.0,2456.9,4.07016972]
[1750814131031,7.78,2457.0,2456.8,4.07026353]
[1750814131242,7.78,2457.0,2456.7,4.07038343]
[1750814131460,0.8255,2456.9,2456.5,4.07076195]
[1750814131659,0.8255,2456.9,2456.6,4.07066677]
[1750814132526,4.89580712,2456.9,2456.4,4.07085877]
[1750814132743,4.07036664,2456.8,2456.2,4.82450246]
[1750814132970,4.0711825,2456.3,2455.8,10.5578]
[1750814133264,4.07108055,2456.4,2455.8,11.56964183]
[1750814133561,4.07108055,2456.4,2455.4,10.73026928]
[1750814133562,0.7522,2456.1,2455.4,0.2231316]
[1750814133785,4.07194347,2455.9,2455.4,4.29576959]
[1750814134061,4.07188334,2455.9,2455.4,4.29577355]
[1750814134226,4.07191468,2455.9,2455.4,0.2231316]
[1750814134424,4.07174879,2456.0,2455.5,4.07248705]
[1750814134652,4.07174879,2456.0,2455.4,0.2231316]
[1750814134842,4.07174879,2456.0,2455.5,4.07248778]
[1750814136169,5.63189078,2456.0,2455.4,0.2231316]
[1750814136328,5.63189078,2456.0,2455.5,4.07240621]
[1750814136541,1.56014199,2456.0,2455.6,4.07229069]
[1750814136771,4.82370802,2456.1,2455.6,4.07229069]
[1750814137580,4.82370802,2456.1,2455.5,4.07240473]
[1750814137880,12.60370802,2456.1,2455.5,4.07240473]
[1750814138042,12.60370802,2456.1,2455.4,4.29574505]
[1750814138377,12.60370802,2456.1,2455.6,4.0722937]
[1750814138573,15.03077811,2456.1,2455.4,4.29569924]
[1750814138870,4.07192126,2455.9,2455.4,4.29569924]
[1750814139448,15.03082914,2456.1,2455.6,4.07232439]
[1750814140051,8.5322,2456.1,2455.7,4.07205035]
[1750814140244,8.5322,2456.1,2455.8,4.07196508]
[1750814140769,8.5322,2456.1,2455.7,4.07206869]
[1750814141492,7.78,2456.1,2455.8,4.07192683]
[1750814141902,7.78,2456.1,2455.7,4.07209084]
[1750814142500,7.78,2456.1,2455.8,4.07198323]
[1750814143098,0.7829,2456.0,2455.8,4.07198323]
[1750814143467,7.78,2456.1,2455.8,4.07198323]
[1750814143667,12.63417417,2456.3,2455.8,4.07198323]
[1750814143868,8.5629,2456.3,2455.9,4.07173788]
[1750814144699,7.78,2456.3,2456.0,4.07164485]
[1750814144904,7.78,2456.3,2456.2,4.07132969]
[1750814145102,7.78,2456.3,2456.1,4.07141689]
[1750814147309,7.78,2456.3,2456.0,4.071585]
[1750814151540,7.78,2456.3,2456.0,0.89118177]
[1750814151694,7.78,2456.3,2456.1,4.07140521]
[1750814152101,7.78,2456.3,2456.2,4.07132969]
[1750814152322,7.78,2456.3,2456.1,4.07133408]
[1750814152627,8.5737,2456.5,2456.1,4.07133408]
[1750814152928,12.64453808,2456.5,2456.1,4.07133408]
[1750814153116,12.64453808,2456.5,2456.0,4.0715653]
[1750814154331,4.07110711,2456.4,2455.9,4.07180475]
[1750814155630,4.07118438,2456.3,2455.9,4.07180475]
[1750814157335,8.38221407,2456.5,2455.6,4.0722827]
[1750814157336,0.7973,2456.1,2455.6,4.0722827]
[1750814157537,0.7973,2456.1,2455.8,4.07198555]
[1750814157938,0.7732,2456.3,2455.9,4.07181544]
[1750814158435,4.84437311,2456.3,2455.9,4.07181544]
[1750814158813,0.7732,2456.3,2455.9,4.07181544]
[1750814160132,0.8088,2456.8,2455.9,1.62547991]
[1750814160437,10.0,2456.6,2456.2,4.07132178]
[1750814161133,16.702,2456.7,2456.3,4.07115434]
[1750814161431,10.0,2456.7,2456.3,4.07115434]
[1750814162430,0.8088,2456.8,2456.4,4.07098561]
[1750814162656,10.0,2456.8,2456.4,5.65989897]
[1750814163057,11.56736812,2457.0,2456.5,4.07074602]
[1750814163349,10.19975462,2456.9,2456.5,4.07074602]
[1750814163652,4.89668118,2457.2,2456.7,4.07048943]
[1750814163834,0.19975675,2457.1,2456.8,4.07032342]
[1750814164031,10.0,2457.1,2456.8,4.07032342]
[1750814164237,10.0,2457.1,2456.7,4.07041974]
[1750814164657,10.8269,2457.2,2456.8,4.07023569]
[1750814164855,0.7862,2457.5,2457.0,4.07000407]
[1750814165151,6.701,2457.5,2457.0,4.06991295]
[1750814165456,6.701,2457.5,2457.1,4.06983373]
[1750814165647,10.0,2457.5,2457.1,4.06983373]
[1750814166219,10.0,2457.5,2456.9,4.0701071]
[1750814166220,14.06918899,2457.5,2457.0,4.06990129]
[1750814166445,14.06918899,2457.5,2457.0,5.04645932]
[1750814169047,10.0,2457.5,2457.1,4.06982732]
[1750814169562,14.0691928,2457.5,2457.0,5.04648069]
[1750814169931,10.0,2457.5,2457.1,4.0698322]
[1750814174667,4.06918769,2457.5,2457.0,5.04646836]
[1750814178657,14.06909292,2457.6,2457.1,4.06983259]
[1750814179765,16.695,2457.6,2457.2,4.06965377]
[1750814179955,20.76401716,2457.6,2457.1,4.06975946]
[1750814180981,20.76401716,2457.6,2457.2,4.06967227]
[1750814181182,20.76401716,2457.6,2457.1,4.06975275]
[1750814181686,4.06919291,2457.5,2457.1,4.06975275]
[1750814182386,20.76408814,2457.6,2457.1,4.06975275]
[1750814183590,4.06917634,2457.5,2457.1,4.06975275]
[1750814184675,2.5432,2457.7,2457.2,4.06963737]
[1750814185191,2.5432,2457.7,2457.3,4.06941481]
[1750814185688,6.61205185,2457.7,2457.3,4.06941481]
[1750814185896,4.06901713,2457.6,2457.2,0.81393901]
[1750814186062,4.06901713,2457.6,2457.1,4.8874558]
[1750814186796,4.06901713,2457.6,2457.1,4.0697558]
[1750814188200,4.06901713,2457.6,2457.2,4.06965956]
[1750814190500,4.06901713,2457.6,2457.1,4.06975106]
[1750814190700,2.5432,2457.7,2457.3,4.06940206]
[1750814190887,4.06909163,2457.6,2456.9,2.5226]
[1750814191080,4.06909163,2457.6,2457.1,4.06975934]
[1750814191477,4.06958846,2457.3,2456.8,0.81407195]
[1750814191710,4.84244284,2457.2,2456.7,4.07038913]
[1750814193126,0.7727,2457.2,2456.8,4.07032782]
[1750814194222,0.7727,2457.2,2456.9,4.07015702]
[1750814194422,0.8112,2457.5,2457.2,4.06958695]
[1750814194801,7.78,2457.6,2457.3,4.06940248]
[1750814195595,7.78,2457.6,2457.2,4.0695881]
[1750814196290,11.84903997,2457.6,2457.1,4.06976171]
[1750814197028,4.06922259,2457.5,2457.0,4.06987993]
[1750814197223,11.84908433,2457.6,2457.1,4.81227671]
[1750814198303,11.84908433,2457.6,2457.2,4.06966037]
[1750814198923,7.78,2457.6,2457.2,4.06966037]
[1750814200529,11.84902089,2457.6,2457.2,4.06966037]
[1750814202034,11.84902089,2457.6,2457.1,4.8122148]
[1750814202846,11.84902089,2457.6,2457.2,4.06965875]
[1750814203020,7.78,2457.6,2457.3,4.06947197]
[1750814203222,7.78,2457.6,2457.5,4.06917599]
[1750814203444,25.2957,2457.9,2457.5,4.06917599]
[1750814203734,0.20000635,2457.8,2457.5,4.06917599]
[1750814203922,25.2957,2457.9,2457.5,4.06917599]
[1750814204122,0.20000681,2457.8,2457.5,4.06917599]
[1750814204324,29.36421889,2457.9,2457.5,4.06917599]
[1750814204509,22.67521889,2457.9,2457.5,4.06917599]
[1750814204915,18.6067,2457.9,2457.5,4.06917599]
[1750814205114,7.78,2457.9,2457.7,4.06874142]
[1750814205332,7.78,2457.9,2457.6,4.06901041]
[1750814205333,7.78,2457.9,2457.6,4.06893209]
[1750814206345,7.78,2457.9,2457.5,4.06911241]
[1750814206643,0.8252,2457.8,2457.5,4.06911241]
[1750814207352,0.8252,2457.8,2457.3,4.06943619]
[1750814207650,4.89388003,2457.8,2457.3,4.06943619]
[1750814207873,0.8164,2457.7,2457.2,4.0695591]
[1750814208151,0.8164,2457.7,2456.9,7.25132166]
[1750814208152,0.7947,2457.2,2456.5,1.752]
[1750814208354,4.06994056,2457.1,2456.6,4.07064733]
[1750814209256,0.7947,2457.2,2456.7,4.07049713]
[1750814209459,0.7947,2457.2,2456.8,4.070242]
[1750814209962,6.687,2457.3,2456.7,0.7881]
[1750814210158,0.8009,2457.4,2457.0,4.06991156]
[1750814210852,0.8009,2457.4,2457.1,4.06973876]
[1750814211017,0.8009,2457.6,2457.2,4.06964288]
[1750814211223,10.0,2457.5,2457.2,4.06964288]
[1750814211858,4.8699417,2457.6,2457.1,4.0697711]
[1750814212355,0.8009,2457.6,2457.2,4.0696572]
[1750814212956,10.8009,2457.6,2457.3,4.06946834]
[1750814213327,10.8009,2457.6,2457.2,4.06959263]
[1750814213852,14.86992437,2457.6,2457.1,4.06974645]
[1750814214880,0.8225,2458.1,2457.3,6.43452166]
[1750814215049,0.8225,2458.4,2457.8,0.7984]
[1750814215237,7.78,2458.6,2457.9,12.25097503]
[1750814215572,7.78,2458.6,2458.3,4.06780433]
[1750814215771,8.6025,2458.7,2458.3,4.06780433]
[1750814216069,8.6025,2458.7,2458.4,4.06759847]
[1750814216657,8.6025,2458.7,2458.5,4.06749869]
[1750814216867,8.6025,2458.7,2458.4,4.06760496]
[1750814217573,9.46275,2458.7,2457.8,4.86704985]
[1750814217783,8.6025,2458.7,2458.4,4.06768343]
[1750814218572,7.78,2458.7,2458.2,0.8136]
[1750814218773,7.78,2458.7,2458.4,4.06753878]
[1750814219348,7.78,2458.7,2458.3,4.32394326]
[1750814220645,11.84720655,2458.7,2458.3,0.25616]
[1750814221071,11.8472305,2458.7,2458.3,0.25616]
[1750814221378,4.06780039,2458.4,2458.1,1.748]
[1750814221718,0.7795,2458.6,2457.2,9.769]
[1750814221987,4.06838581,2458.0,2457.5,4.06908617]
[1750814222184,4.06824794,2458.1,2457.6,5.05764061]
[1750814223378,4.06824794,2458.1,2457.6,5.05761156]
[1750814223579,4.06871437,2457.8,2457.3,4.06943013]
[1750814224181,4.06910132,2457.6,2457.1,1.06785774]
[1750814224490,4.06890951,2457.7,2457.2,4.06959577]
[1750814224791,4.0690294,2457.6,2457.1,4.06975606]
[1750814224992,4.06893193,2457.7,2457.2,4.06962645]
[1750814225495,4.06904497,2457.6,2457.1,4.0697521]
[1750814225707,0.8087,2458.0,2456.6,14.96028554]
[1750814225708,0.8167,2457.5,2456.7,0.7589]
[1750814226009,0.8167,2457.5,2456.6,1.747]
[1750814226298,4.06941027,2457.4,2456.9,4.07015595]
[1750814226505,4.88597868,2457.5,2456.9,4.07015595]
[1750814227006,4.88597868,2457.5,2457.0,4.06998662]
[1750814227162,4.88597868,2457.5,2457.0,4.88401488]